bitfinex/quotes_SOLUSD_20230701
["timestamp","ask_amount","ask_price","bid_price","bid_amount"]
[1688192114430,78.288,18.164,18.154,23.3]
[1688192115132,99.1172,18.168,18.154,23.3]
[1688192115431,122.3992,18.168,18.155,1.61058737]
[1688192115618,122.3992,18.168,18.158,23.294]
[1688192117217,23.285,18.166,18.158,23.294]
[1688192117417,55.0,18.165,18.158,23.294]
[1688192117817,78.286,18.165,18.158,23.294]
[1688192118327,55.0,18.165,18.158,23.294]
[1688192118528,78.285,18.166,18.158,23.294]
[1688192122736,122.4002,18.168,18.158,23.294]
[1688192122933,55.68671786,18.171,18.158,23.294]
[1688192123233,20.0,18.17,18.158,23.294]
[1688192123438,23.284,18.167,18.158,23.294]
[1688192124027,55.0,18.166,18.158,23.294]
[1688192124231,78.286,18.166,18.158,23.294]
[1688192125435,78.286,18.166,18.156,23.296]
[1688192125832,78.286,18.166,18.155,23.299]
[1688192126032,78.286,18.166,18.151,59.995]
[1688192126344,78.286,18.166,18.152,1.61058737]
[1688192126832,78.286,18.166,18.155,23.299]
[1688192128645,78.286,18.166,18.148,30.83719922]
[1688192128818,78.286,18.166,18.149,1.61058737]
[1688192129229,78.286,18.166,18.154,23.3]
[1688192132039,105.53826129,18.166,18.154,23.3]
[1688192132535,197.46506129,18.166,18.154,23.3]
[1688192132722,197.46506129,18.166,18.15,1.61058737]
[1688192132928,197.46506129,18.166,18.15,21.61058737]
[1688192133428,3.0,18.158,18.142,60.0]
[1688192133629,36.17,18.15,18.135,60.048]
[1688192133831,23.308,18.148,18.125,109.626]
[1688192134128,23.315,18.143,18.131,23.329]
[1688192134441,23.319,18.14,18.13,23.331]
[1688192134736,23.319,18.14,18.127,20.1990377]
[1688192134931,23.321,18.138,18.127,20.1990377]
[1688192135132,23.321,18.138,18.126,60.078]
[1688192135328,55.0,18.137,18.126,60.078]
[1688192135635,23.324,18.136,18.122,25.46664738]
[1688192135945,75.0,18.135,18.122,25.46664738]
[1688192136245,75.0,18.135,18.1,35.98]
[1688192136246,36.17,18.13,18.112,7.60875481]
[1688192136540,82.07718737,18.129,18.116,23.348]
[1688192136727,23.336,18.126,18.114,23.35]
[1688192136927,13.91506488,18.124,18.116,23.349]
[1688192137127,23.339,18.124,18.116,23.349]
[1688192138330,23.339,18.124,18.112,23.353]
[1688192138530,66.60718614,18.123,18.112,23.353]
[1688192138731,23.344,18.12,18.112,23.353]
[1688192139349,55.0,18.123,18.112,23.353]
[1688192139547,9.5239717,18.122,18.112,23.353]
[1688192139848,23.343,18.121,18.112,23.353]
[1688192143749,23.347,18.118,18.111,23.355]
[1688192144132,23.347,18.118,18.105,115.147]
[1688192144133,23.347,18.118,18.109,23.357]
[1688192144347,23.347,18.118,18.1,317.28937194]
[1688192144544,23.347,18.118,18.104,94.7665]
[1688192144755,23.347,18.118,18.101,2.68279723]
[1688192144958,23.347,18.118,18.101,97.44929723]
[1688192145242,23.347,18.118,18.106,23.362]
[1688192146031,23.344,18.12,18.107,55.0]
[1688192146235,60.087,18.124,18.113,23.352]
[1688192146236,23.342,18.122,18.113,23.352]
[1688192146740,23.342,18.122,18.11,36.17]
[1688192146940,23.342,18.122,18.106,60.145]
[1688192147151,23.342,18.122,18.107,20.0]
[1688192147534,55.0,18.121,18.107,20.0]
[1688192147744,23.348,18.118,18.109,23.357]
[1688192148047,23.348,18.118,18.11,20.0]
[1688192148234,23.348,18.118,18.111,23.355]
[1688192148559,23.348,18.118,18.11,43.355]
[1688192149249,55.0,18.121,18.11,43.355]
[1688192149250,23.345,18.12,18.11,43.355]
[1688192149446,78.345,18.119,18.11,43.355]
[1688192150346,78.345,18.119,18.108,23.359]
[1688192150551,78.345,18.119,18.1,253.29]
[1688192150737,78.345,18.119,18.101,4.88224285]
[1688192151044,78.345,18.119,18.1,253.29]
[1688192151045,23.347,18.118,18.109,23.357]
[1688192151250,78.348,18.117,18.109,23.357]
[1688192151454,23.348,18.117,18.109,23.357]
[1688192153251,23.348,18.117,18.106,23.361]
[1688192153452,55.0,18.116,18.106,23.361]
[1688192153636,23.353,18.113,18.106,23.361]
[1688192154140,23.351,18.115,18.106,23.361]
[1688192154454,23.349,18.117,18.106,23.361]
[1688192156139,60.093,18.122,18.11,23.356]
[1688192156343,20.0,18.121,18.11,23.356]
[1688192157857,23.347,18.118,18.11,23.356]
[1688192161156,23.347,18.118,18.105,60.146]
[1688192161459,52.19044462,18.127,18.102,55.0]
[1688192161460,83.424,18.127,18.11,181.23]
[1688192161649,23.343,18.121,18.113,23.353]
[1688192161849,23.341,18.122,18.113,23.353]
[1688192163548,129.5491,18.13,18.11,63.127187]
[1688192163865,129.5491,18.13,18.103,91.5657]
[1688192163866,23.345,18.12,18.104,60.15]
[1688192164040,23.345,18.12,18.111,23.355]
[1688192165046,23.345,18.12,18.105,109.744]
[1688192165252,23.343,18.121,18.111,23.355]
[1688192165453,20.0,18.12,18.111,23.355]
[1688192166258,43.345,18.12,18.106,99.6624]
[1688192166454,55.0,18.119,18.106,99.6624]
[1688192166655,23.347,18.118,18.109,23.357]
[1688192167757,55.0,18.117,18.109,23.357]
[1688192167960,55.0,18.119,18.109,23.357]
[1688192169956,23.347,18.118,18.109,23.357]
[1688192170359,55.0,18.119,18.109,23.357]
[1688192170360,78.345,18.119,18.109,23.357]
[1688192171372,23.345,18.119,18.109,23.357]
[1688192171560,23.341,18.123,18.109,23.357]
[1688192171767,54.29386191,18.122,18.109,23.357]
[1688192171961,43.342,18.122,18.109,23.357]
[1688192172953,23.342,18.122,18.109,23.357]
[1688192173264,23.342,18.122,18.113,23.352]
[1688192173765,23.342,18.122,18.108,60.137]
[1688192173962,55.0,18.121,18.109,20.0]
[1688192174166,23.344,18.12,18.113,23.353]
[1688192175147,78.343,18.121,18.113,23.353]
[1688192175674,55.0,18.121,18.113,23.353]
[1688192175855,78.342,18.122,18.113,23.353]
[1688192176466,52.17946421,18.128,18.113,133.053]
[1688192176765,169.639,18.133,18.113,133.053]
[1688192176766,13.28551483,18.127,18.114,55.0]
[1688192177065,23.333,18.129,18.119,23.344]
[1688192177864,78.334,18.128,18.119,23.344]
[1688192178257,9.12226407,18.127,18.117,23.347]
[1688192178453,23.338,18.125,18.117,23.347]
[1688192178961,55.0,18.126,18.117,23.347]
[1688192179766,78.337,18.126,18.11,119.464]
[1688192179957,15.00504913,18.125,18.114,23.351]
[1688192180154,23.341,18.123,18.114,23.351]
[1688192180560,55.0,18.122,18.114,23.351]
[1688192181565,55.0,18.123,18.114,23.351]
[1688192182675,78.341,18.123,18.114,23.351]
[1688192183870,55.0,18.123,18.114,23.351]
[1688192184064,55.0,18.124,18.114,23.351]
[1688192186182,78.339,18.124,18.114,23.351]
[1688192186396,10.13753272,18.123,18.112,23.353]
[1688192186581,10.13753272,18.123,18.109,80.134]
[1688192186582,23.343,18.121,18.109,80.134]
[1688192187269,55.0,18.122,18.113,23.352]
[1688192187466,78.341,18.122,18.113,23.352]
[1688192187867,55.0,18.122,18.113,23.352]
[1688192188066,78.342,18.122,18.109,20.0]
[1688192188278,78.342,18.122,18.111,23.355]
[1688192193283,55.0,18.122,18.111,83.484]
[1688192193478,28.84346598,18.127,18.111,83.484]
[1688192193685,10.83719922,18.128,18.111,83.484]
[1688192193686,71.62062874,18.126,18.111,94.32119922]
[1688192194395,94.95762874,18.126,18.111,94.32119922]
[1688192199675,94.95762874,18.126,18.111,23.355]
[1688192199881,105.79482796,18.126,18.111,23.355]
[1688192206992,94.95762874,18.126,18.111,23.355]
[1688192208275,94.95762874,18.126,18.11,23.357]
[1688192208476,94.95762874,18.126,18.103,92.0182]
[1688192208477,20.0,18.125,18.103,92.0182]
[1688192208681,23.343,18.121,18.106,133.104]
[1688192208982,75.0,18.12,18.106,23.362]
[1688192209181,23.346,18.119,18.106,23.362]
[1688192209492,55.0,18.118,18.106,23.362]
[1688192209796,78.347,18.118,18.106,23.362]
[1688192223408,138.452,18.118,18.106,23.362]
[1688192223609,78.347,18.118,18.106,23.362]
[1688192223800,138.452,18.118,18.105,23.363]
[1688192225810,78.347,18.118,18.105,23.363]
[1688192229211,56.33,18.12,18.105,34.20019922]
[1688192229617,20.0,18.12,18.11,36.33]
[1688192229818,43.344,18.12,18.113,23.353]
[1688192230003,43.344,18.12,18.11,36.33]
[1688192230310,43.344,18.12,18.11,59.687]
[1688192230717,43.344,18.12,18.11,23.357]
[1688192231014,43.344,18.12,18.11,59.687]
[1688192232119,55.0,18.119,18.11,23.357]
[1688192232415,23.347,18.118,18.11,23.357]
[1688192233417,60.083,18.125,18.11,70.52419922]
[1688192233600,23.342,18.122,18.11,70.52419922]
[1688192233917,23.342,18.122,18.111,10.83719922]
[1688192234117,23.342,18.122,18.114,23.351]
[1688192234313,95.1893,18.127,18.114,23.351]
[1688192234514,37.53325754,18.125,18.114,23.351]
[1688192235216,23.338,18.125,18.114,23.351]
[1688192236418,55.0,18.124,18.114,23.351]
[1688192239119,23.341,18.122,18.114,23.351]
[1688192239322,55.0,18.121,18.114,23.351]
[1688192239507,78.339,18.124,18.114,23.351]
[1688192239706,9.48082077,18.123,18.114,23.351]
[1688192240022,55.0,18.122,18.114,23.351]
[1688192245928,28.84455496,18.126,18.114,23.351]
[1688192246128,66.50199995,18.125,18.114,23.351]
[1688192246620,11.50199995,18.125,18.114,23.351]
[1688192248033,55.0,18.124,18.114,23.351]
[1688192248230,55.0,18.125,18.114,23.351]
[1688192248431,10.4716262,18.124,18.114,23.351]
[1688192248729,55.0,18.123,18.114,23.351]
[1688192248922,10.469942,18.124,18.114,23.351]
[1688192249127,55.0,18.123,18.114,23.351]
[1688192249310,10.40399545,18.124,18.114,23.351]
[1688192249512,55.0,18.123,18.114,23.351]
[1688192250414,28.84455496,18.126,18.114,23.351]
[1688192250615,11.42164328,18.125,18.114,23.351]
[1688192250814,13.08000898,18.126,18.114,23.351]
[1688192251436,16.62062874,18.129,18.114,23.351]
[1688192252021,55.0,18.128,18.114,23.351]
[1688192252220,16.62062874,18.127,18.114,23.351]
[1688192260028,16.62062874,18.127,18.115,55.0]
[1688192260230,23.334,18.128,18.118,23.346]
[1688192260431,59.662,18.13,18.118,23.346]
[1688192260631,66.65976146,18.129,18.118,23.346]
[1688192260935,89.99276146,18.129,18.118,23.346]
[1688192262324,11.65976146,18.129,18.12,36.33]
[1688192262523,27.03406626,18.134,18.122,23.34]
[1688192262722,36.22,18.14,18.122,23.34]
[1688192262934,16.62062874,18.139,18.123,57.24801156]
[1688192263232,16.62062874,18.139,18.127,83.409]
[1688192263831,39.94062874,18.139,18.127,83.409]
[1688192264036,16.62062874,18.139,18.127,83.409]
[1688192264827,39.94062874,18.139,18.127,83.409]
[1688192265042,16.62062874,18.139,18.127,83.409]
[1688192266842,39.94062874,18.139,18.127,83.409]
[1688192267429,55.0,18.138,18.127,83.409]
[1688192267645,16.62062874,18.137,18.127,83.409]
[1688192267836,78.321,18.138,18.127,83.409]
[1688192268441,36.22,18.14,18.127,83.409]
[1688192268635,12.10197088,18.139,18.127,83.409]
[1688192270348,12.10197088,18.139,18.13,36.33]
[1688192270542,60.007,18.148,18.132,23.328]
[1688192270731,23.312,18.145,18.132,23.328]
[1688192271339,18.77678346,18.144,18.132,23.328]
[1688192271537,23.316,18.142,18.132,23.328]
[1688192272131,55.0,18.141,18.132,23.328]
[1688192272334,36.22,18.14,18.132,23.328]
[1688192273135,23.319,18.139,18.125,60.081]
[1688192273439,23.322,18.137,18.128,23.332]
[1688192273639,55.0,18.136,18.128,23.332]
[1688192274545,23.325,18.135,18.128,23.332]
[1688192274746,55.0,18.136,18.128,23.332]
[1688192276936,78.324,18.136,18.128,23.332]
[1688192277852,36.1,18.14,18.128,23.332]
[1688192278039,65.73425615,18.139,18.128,23.332]
[1688192278345,55.0,18.139,18.128,23.332]
[1688192278544,11.8208577,18.14,18.128,23.332]
[1688192278938,11.8208577,18.142,18.132,23.328]
[1688192279445,19.84728231,18.148,18.132,23.328]
[1688192279658,43.15528231,18.148,18.132,132.913]
[1688192280254,43.15528231,18.148,18.132,23.328]
[1688192281457,43.15828231,18.146,18.132,23.328]
[1688192283051,19.84728231,18.146,18.132,23.328]
[1688192283849,43.15828231,18.146,18.132,23.328]
[1688192290254,19.84728231,18.146,18.132,23.328]
[1688192290675,43.15828231,18.146,18.132,23.328]
[1688192291753,19.84728231,18.146,18.132,23.328]
[1688192291952,43.15828231,18.146,18.132,23.328]
[1688192293473,43.15828231,18.146,18.132,34.16519922]
[1688192293965,43.15828231,18.146,18.132,23.328]
[1688192294146,55.0,18.145,18.132,23.328]
[1688192294344,23.316,18.142,18.132,23.328]
[1688192295552,55.0,18.141,18.132,23.328]
[1688192295864,23.319,18.139,18.129,20.0]
[1688192296052,9.67331528,18.137,18.129,23.332]
[1688192296251,78.321,18.138,18.13,43.33]
[1688192296456,78.321,18.138,18.13,23.33]
[1688192296658,55.0,18.138,18.13,23.33]
[1688192296855,78.32,18.139,18.13,23.33]
[1688192297465,55.0,18.139,18.13,23.33]
[1688192297653,23.32,18.139,18.13,23.33]
[1688192297851,55.0,18.138,18.13,23.33]
[1688192301164,93.7651,18.144,18.13,23.33]
[1688192301360,67.34209723,18.143,18.13,23.33]
[1688192302870,12.34209723,18.141,18.13,23.33]
[1688192303045,55.0,18.14,18.13,23.33]
[1688192303566,55.0,18.141,18.13,23.33]
[1688192310257,55.0,18.142,18.13,23.33]
[1688192310460,10.4705582,18.141,18.13,23.33]
[1688192310757,55.0,18.14,18.13,23.33]
[1688192311356,78.319,18.14,18.13,23.33]
[1688192312755,9.45735791,18.139,18.13,23.33]
[1688192312966,55.0,18.138,18.13,23.33]
[1688192313166,93.7651,18.144,18.13,83.396]
[1688192313371,13.73113857,18.143,18.13,83.396]
[1688192314068,18.56117955,18.146,18.13,83.396]
[1688192314572,55.0,18.145,18.13,83.396]
[1688192314771,41.87517955,18.144,18.13,83.396]
[1688192314975,55.0,18.143,18.13,83.396]
[1688192315157,18.56117955,18.142,18.13,83.396]
[1688192319864,41.87717955,18.142,18.13,83.396]
[1688192320060,23.316,18.142,18.13,83.396]
[1688192323680,23.312,18.145,18.13,83.396]
[1688192323891,65.33231842,18.144,18.13,83.396]
[1688192326773,88.64531842,18.144,18.13,83.396]
[1688192331687,10.33231842,18.144,18.13,119.656]
[1688192331890,12.66081699,18.145,18.13,119.656]
[1688192332190,35.97281699,18.145,18.13,119.656]
[1688192337802,12.66081699,18.145,18.131,55.0]
[1688192338101,20.94892844,18.149,18.135,192.937]
[1688192338289,20.94892844,18.15,18.136,55.0]
[1688192338489,20.94892844,18.15,18.14,23.318]
[1688192338788,23.305,18.151,18.14,23.318]
[1688192338988,20.0,18.15,18.14,23.318]
[1688192339391,43.305,18.15,18.14,23.318]
[1688192340891,43.305,18.15,18.14,59.418]
[1688192342507,79.285,18.15,18.14,23.318]
[1688192343308,43.305,18.15,18.14,23.318]
[1688192343808,79.285,18.15,18.138,23.32]
[1688192344020,66.36398732,18.149,18.138,23.32]
[1688192344186,23.311,18.146,18.138,23.32]
[1688192344391,23.311,18.146,18.136,115.5642]
[1688192344692,23.311,18.146,18.136,23.322]
[1688192349506,55.0,18.145,18.133,23.326]
[1688192349689,23.316,18.142,18.133,23.326]
[1688192349894,55.0,18.141,18.132,23.328]
[1688192350112,23.32,18.139,18.132,23.328]
[1688192350609,60.018,18.145,18.132,23.328]
[1688192350798,23.32,18.139,18.13,23.33]
[1688192351113,10.28174643,18.137,18.131,23.33]
[1688192351416,78.321,18.138,18.131,23.33]
[1688192352899,78.321,18.138,18.131,23.329]
[1688192353315,55.0,18.138,18.131,23.329]
[1688192353616,55.0,18.139,18.131,23.329]
[1688192362526,78.321,18.139,18.131,23.329]
[1688192362732,78.321,18.139,18.129,23.332]
[1688192363205,9.24487527,18.138,18.129,23.332]
[1688192363406,55.0,18.137,18.129,23.332]
[1688192363614,78.323,18.137,18.129,23.332]
[1688192363817,55.0,18.137,18.129,23.332]
[1688192364010,78.322,18.137,18.129,23.332]
[1688192368213,78.322,18.137,18.127,23.334]
[1688192371222,23.322,18.137,18.127,23.334]
[1688192371820,23.32,18.139,18.127,23.334]
[1688192372011,9.17424896,18.138,18.13,36.1]
[1688192372323,23.318,18.141,18.132,23.328]
[1688192372528,12.8471524,18.143,18.132,23.328]
[1688192372725,43.316,18.142,18.132,23.328]
[1688192373225,9.58991047,18.141,18.132,23.328]
[1688192373411,43.319,18.14,18.132,23.328]
[1688192377425,43.319,18.14,18.13,23.33]
[1688192380429,23.319,18.14,18.13,23.33]
[1688192382526,23.319,18.14,18.13,59.43]
[1688192382824,23.317,18.142,18.13,59.43]
[1688192383029,23.317,18.142,18.131,10.83719922]
[1688192383335,23.317,18.142,18.134,23.325]
[1688192384327,216.7410479,18.15,18.134,23.325]
[1688192384531,74.46997021,18.149,18.134,23.325]
[1688192384920,23.315,18.143,18.134,23.325]
[1688192390738,23.315,18.143,18.132,23.328]
[1688192390944,55.0,18.142,18.13,23.33]
[1688192391147,23.32,18.139,18.13,23.33]
[1688192395444,23.318,18.141,18.13,23.33]
[1688192395631,55.0,18.14,18.13,23.33]
[1688192401847,90.98,18.14,18.13,23.33]
[1688192405051,90.98,18.14,18.13,34.16719922]
[1688192405255,23.313,18.145,18.13,70.01719922]
[1688192405457,66.31450888,18.144,18.131,10.83719922]
[1688192405638,66.31450888,18.144,18.134,23.325]
[1688192405945,55.0,18.144,18.134,23.325]
[1688192406257,78.313,18.144,18.134,23.325]
[1688192410150,55.0,18.144,18.134,23.325]
[1688192410348,188.6648,18.15,18.134,34.16219922]
[1688192410349,23.309,18.148,18.134,34.16219922]
[1688192410556,12.59380713,18.147,18.134,34.16219922]
[1688192411653,35.90380713,18.147,18.134,34.16219922]
[1688192412941,55.0,18.146,18.134,34.16219922]
[1688192413146,12.59380713,18.145,18.134,34.16219922]
[1688192413654,35.90580713,18.145,18.134,34.16219922]
[1688192413849,23.312,18.145,18.134,34.16219922]
[1688192414253,19.43419469,18.149,18.134,34.16219922]
[1688192414454,55.0,18.148,18.134,34.16219922]
[1688192414652,19.43419469,18.147,18.134,34.16219922]
[1688192415758,23.311,18.146,18.134,34.16219922]
[1688192415953,19.43419469,18.145,18.134,34.16219922]
[1688192416260,23.314,18.144,18.134,34.16219922]
[1688192423762,23.314,18.144,18.133,23.327]
[1688192423958,64.15917819,18.143,18.133,23.327]
[1688192424161,23.316,18.142,18.133,23.327]
[1688192425553,55.0,18.141,18.133,23.327]
[1688192425763,23.319,18.14,18.133,23.327]
[1688192428562,23.311,18.146,18.133,23.327]
[1688192429065,21.65882082,18.145,18.133,23.327]
[1688192433058,21.65882082,18.149,18.134,55.0]
[1688192433266,23.302,18.153,18.14,36.1]
[1688192433461,23.3,18.155,18.145,23.312]
[1688192433867,27.07718737,18.154,18.145,23.312]
[1688192434076,50.37718737,18.154,18.145,23.312]
[1688192434362,23.3,18.154,18.145,23.312]
[1688192435864,27.07718737,18.157,18.145,23.312]
[1688192435865,23.299,18.156,18.145,23.312]
[1688192436165,27.07718737,18.155,18.145,23.312]
[1688192436575,50.37618737,18.155,18.145,23.312]
[1688192436760,55.0,18.154,18.145,23.312]
[1688192436962,27.07718737,18.153,18.145,23.312]
[1688192437467,27.07718737,18.158,18.145,23.312]
[1688192437659,27.07718737,18.158,18.152,23.302]
[1688192437959,23.295,18.159,18.152,23.302]
[1688192438164,23.293,18.16,18.152,23.302]
[1688192438957,23.292,18.161,18.152,23.302]
[1688192439159,20.0,18.16,18.152,23.302]
[1688192439357,43.293,18.16,18.152,23.302]
[1688192439867,43.293,18.16,18.15,36.1]
[1688192440071,43.293,18.16,18.145,152.4067]
[1688192440072,66.90957856,18.159,18.145,152.4067]
[1688192440273,23.297,18.157,18.15,23.305]
[1688192440476,55.0,18.156,18.148,23.307]
[1688192440682,78.298,18.156,18.148,23.307]
[1688192441273,78.298,18.156,18.143,109.518]
[1688192441465,12.42563696,18.155,18.146,23.309]
[1688192441776,78.3,18.154,18.146,23.309]
[1688192441971,55.0,18.154,18.146,23.309]
[1688192442178,55.0,18.155,18.146,23.309]
[1688192443765,78.3,18.155,18.146,23.309]
[1688192445474,55.0,18.155,18.146,23.309]
[1688192446075,55.0,18.155,18.141,92.3907]
[1688192446271,15.09562755,18.154,18.141,92.3907]
[1688192446483,55.0,18.153,18.144,23.313]
[1688192447266,93.5306,18.158,18.144,23.313]
[1688192447585,17.38814207,18.157,18.144,23.313]
[1688192447881,23.298,18.156,18.144,23.313]
[1688192448080,17.38814207,18.155,18.144,23.313]
[1688192448764,23.299,18.155,18.144,23.313]
[1688192448964,55.0,18.154,18.144,23.313]
[1688192449366,15.44436597,18.156,18.144,23.313]
[1688192449671,55.0,18.155,18.144,23.313]
[1688192449871,15.44436597,18.154,18.144,23.313]
[1688192453282,18.16044388,18.157,18.144,23.313]
[1688192454367,18.16044388,18.157,18.15,35.85]
[1688192454571,23.289,18.163,18.152,23.303]
[1688192454766,18.16044388,18.164,18.152,83.296]
[1688192454980,18.16044388,18.166,18.152,83.296]
[1688192455284,23.286,18.165,18.152,83.296]
[1688192455489,23.39237239,18.164,18.152,23.303]
[1688192455676,23.39237239,18.164,18.15,35.85]
[1688192455677,23.293,18.16,18.15,59.154]
[1688192455881,23.293,18.16,18.15,23.304]
[1688192456782,55.0,18.159,18.15,23.304]
[1688192458586,78.294,18.159,18.15,23.304]
[1688192459992,78.294,18.159,18.143,55.0]
[1688192460192,16.8194593,18.158,18.141,92.3907]
[1688192460501,23.302,18.153,18.143,23.314]
[1688192460896,55.0,18.152,18.143,23.314]
[1688192461094,23.303,18.152,18.143,23.314]
[1688192461304,55.0,18.151,18.143,23.314]
[1688192461480,23.307,18.149,18.139,23.319]
[1688192461685,23.307,18.149,18.141,23.317]
[1688192462183,55.0,18.151,18.141,23.317]
[1688192463202,78.305,18.151,18.141,23.317]
[1688192464303,55.0,18.151,18.141,23.317]
[1688192464691,78.305,18.151,18.141,23.317]
[1688192464902,55.0,18.151,18.141,23.317]
[1688192465801,23.301,18.154,18.141,23.317]
[1688192466001,13.06232682,18.153,18.141,23.317]
[1688192466511,22.01318085,18.158,18.142,55.0]
[1688192466705,139.48628737,18.163,18.146,83.319]
[1688192467094,23.29,18.162,18.146,83.319]
[1688192467404,70.36818737,18.161,18.151,23.304]
[1688192467603,43.291,18.161,18.151,23.304]
[1688192468796,23.291,18.161,18.151,23.304]
[1688192469003,23.29,18.163,18.151,23.304]
[1688192469302,23.3678309,18.168,18.151,23.304]
[1688192470191,55.0,18.167,18.151,23.304]
[1688192470390,23.3678309,18.166,18.151,23.304]
[1688192470610,23.72490322,18.168,18.151,23.304]
[1688192470906,23.288,18.164,18.151,23.304]
[1688192472400,23.72490322,18.168,18.151,23.304]
[1688192472608,86.80126638,18.172,18.152,55.0]
[1688192472806,86.80126638,18.172,18.158,23.295]
[1688192472807,23.283,18.168,18.158,23.295]
[1688192473507,23.281,18.17,18.158,23.295]
[1688192473711,9.94553478,18.168,18.158,23.295]
[1688192474493,43.281,18.169,18.158,23.295]
[1688192475393,20.0,18.169,18.158,23.295]
[1688192475595,18.46325154,18.173,18.158,23.295]
[1688192475795,75.0,18.172,18.158,23.295]
[1688192476213,18.46325154,18.171,18.158,23.295]
[1688192476408,75.0,18.17,18.158,23.295]
[1688192476704,23.278,18.172,18.16,36.18]
[1688192476911,23.278,18.172,18.163,23.288]
[1688192478296,23.276,18.173,18.163,23.288]
[1688192478499,17.10053184,18.177,18.163,23.288]
[1688192478798,40.37153184,18.177,18.164,45.83793073]
[1688192479001,40.37153184,18.177,18.166,23.284]
[1688192479901,55.0,18.176,18.166,23.284]
[1688192480101,40.37453184,18.175,18.166,23.284]
[1688192480302,95.9747,18.178,18.16,134.8559]
[1688192480498,22.66385422,18.175,18.166,23.284]
[1688192481799,55.0,18.174,18.166,23.284]
[1688192483603,96.3284,18.181,18.166,23.284]
[1688192483807,23.272,18.177,18.166,23.284]
[1688192484103,55.0,18.176,18.166,23.284]
[1688192484300,23.267,18.18,18.166,23.284]
[1688192484803,43.269,18.179,18.166,23.284]
[1688192485399,38.269,18.179,18.166,23.284]
[1688192485609,55.0,18.178,18.166,23.284]
[1688192485808,15.0,18.179,18.166,23.284]
[1688192485993,23.268,18.179,18.167,55.0]
[1688192486195,23.268,18.179,18.17,23.279]
[1688192488399,23.268,18.179,18.164,59.893]
[1688192488605,55.0,18.178,18.168,23.281]
[1688192488803,23.273,18.175,18.168,23.281]
[1688192489114,23.271,18.177,18.168,23.281]
[1688192490609,23.271,18.177,18.166,23.285]
[1688192490806,23.276,18.174,18.166,23.285]
[1688192491504,23.273,18.175,18.166,23.285]
[1688192491710,23.271,18.177,18.166,23.285]